bitfinex/quotes_BTCUSD_20241004
["timestamp","ask_amount","ask_price","bid_price","bid_amount"]
[1728009485237,0.1808,61241.0,61240.0,0.002636]
[1728009485432,0.37130996,61241.0,61240.0,0.002636]
[1728009485573,0.37130996,61241.0,61240.0,0.004636]
[1728009485794,0.37130996,61241.0,61240.0,0.006636]
[1728009485991,0.37130996,61241.0,61240.0,0.169927]
[1728009486193,0.37130996,61241.0,61240.0,0.006636]
[1728009486398,0.37130996,61241.0,61240.0,0.001636]
[1728009486597,0.3979107,61241.0,61240.0,0.164927]
[1728009486803,0.3979107,61241.0,61240.0,0.168927]
[1728009487006,0.20740074,61241.0,61240.0,0.164927]
[1728009487592,0.20715373,61241.0,61240.0,0.167927]
[1728009488009,0.20615373,61241.0,61240.0,0.167927]
[1728009488446,0.20615373,61241.0,61240.0,0.168927]
[1728009488934,0.20615373,61241.0,61240.0,0.164927]
[1728009489180,0.20615373,61241.0,61240.0,0.165927]
[1728009489419,0.20615373,61241.0,61240.0,0.164927]
[1728009489874,0.20915373,61241.0,61240.0,0.164927]
[1728009490106,0.20715373,61241.0,61240.0,0.164927]
[1728009491062,0.20615373,61241.0,61240.0,0.165927]
[1728009491534,0.20815373,61241.0,61240.0,0.165927]
[1728009491988,0.20615373,61241.0,61240.0,0.165927]
[1728009492252,0.20715373,61241.0,61240.0,0.164927]
[1728009492753,0.20615373,61241.0,61240.0,0.164927]
[1728009492992,0.20815373,61241.0,61240.0,0.164927]
[1728009493743,0.20815373,61241.0,61240.0,0.165927]
[1728009494003,0.20815373,61241.0,61240.0,0.164927]
[1728009494256,0.20615373,61241.0,61240.0,0.164927]
[1728009494482,0.20715373,61241.0,61240.0,0.164927]
[1728009494955,0.20615373,61241.0,61240.0,0.164927]
[1728009495410,0.18255299,61241.0,61240.0,0.164927]
[1728009495873,0.18055299,61241.0,61240.0,0.165927]
[1728009496282,0.18155299,61241.0,61240.0,0.002636]
[1728009496773,0.18155299,61241.0,61240.0,0.001636]
[1728009497021,0.34484199,61241.0,61240.0,0.001636]
[1728009497491,0.34384199,61241.0,61240.0,0.001636]
[1728009497721,0.34384199,61241.0,61240.0,0.002636]
[1728009497955,0.34584199,61241.0,61240.0,0.002636]
[1728009498429,0.34384199,61241.0,61240.0,0.002636]
[1728009498721,0.35384199,61241.0,61240.0,0.003636]
[1728009498957,0.37944647,61241.0,61240.0,0.002636]
[1728009499194,0.38444647,61241.0,61240.0,0.003636]
[1728009499435,0.38444647,61241.0,61240.0,0.002636]
[1728009499907,0.36384199,61241.0,61240.0,0.003636]
[1728009500849,0.35384199,61241.0,61240.0,0.002636]
[1728009501092,0.36284199,61241.0,61240.0,0.003636]
[1728009503290,0.2251584,61241.0,61240.0,0.003636]
[1728009503516,0.19955299,61241.0,61240.0,0.003636]
[1728009504226,0.19955299,61241.0,61240.0,0.001636]
[1728009504227,0.18055299,61241.0,61240.0,0.001636]
[1728009504458,0.19455299,61241.0,61240.0,0.003636]
[1728009504925,0.18555299,61241.0,61240.0,0.002636]
[1728009505280,0.10747099,61241.0,61240.0,0.002636]
[1728009505490,0.10247099,61241.0,61240.0,0.187927]
[1728009505924,0.10547099,61241.0,61240.0,0.187927]
[1728009506153,0.10247099,61241.0,61240.0,0.187927]
[1728009506407,0.09847099,61241.0,61240.0,0.187927]
[1728009506821,0.10247099,61241.0,61240.0,0.187927]
[1728009507025,0.10547099,61241.0,61240.0,0.187927]
[1728009507238,0.09847099,61241.0,61240.0,0.187927]
[1728009507464,0.10047099,61241.0,61240.0,0.187927]
[1728009507714,0.10347099,61241.0,61240.0,0.187927]
[1728009509652,0.005818,61241.0,61240.0,0.187927]
[1728009510820,0.005818,61241.0,61240.0,0.024636]
[1728009511062,0.19632796,61241.0,61240.0,0.024636]
[1728009511993,0.003818,61241.0,61240.0,0.024636]
[1728009512220,0.005818,61241.0,61240.0,0.024636]
[1728009512699,0.166107,61241.0,61240.0,0.024636]
[1728009512938,0.35661696,61241.0,61240.0,0.001636]
[1728009513152,0.45561696,61241.0,61240.0,0.001636]
[1728009513591,0.45361696,61241.0,61240.0,0.001636]
[1728009513813,0.48422034,61241.0,61240.0,0.001636]
[1728009514499,0.48122034,61241.0,61240.0,0.001636]
[1728009514727,0.48422034,61241.0,61240.0,0.001636]
[1728009515174,0.48222034,61241.0,61240.0,0.001636]
[1728009515419,0.48422034,61241.0,61240.0,0.001636]
[1728009516997,0.56002034,61241.0,61240.0,0.001636]
[1728009518221,0.55502034,61241.0,61240.0,0.001636]
[1728009518463,0.55502034,61241.0,61240.0,0.003636]
[1728009518464,0.56902034,61241.0,61240.0,0.003636]
[1728009518703,0.37851038,61241.0,61240.0,0.003636]
[1728009518951,0.37351038,61241.0,61240.0,0.002636]
[1728009519186,0.37851038,61241.0,61240.0,0.003636]
[1728009519954,0.37351038,61241.0,61240.0,0.002636]
[1728009520194,0.36951038,61241.0,61240.0,0.002636]
[1728009520431,0.38151038,61241.0,61240.0,0.003636]
[1728009520906,0.36951038,61241.0,61240.0,0.002636]
[1728009521146,0.37451038,61241.0,61240.0,0.002636]
[1728009521384,0.36951038,61241.0,61240.0,0.001636]
[1728009521615,0.37251038,61241.0,61240.0,0.001636]
[1728009523763,0.29671038,61241.0,61240.0,0.001636]
[1728009529679,0.107818,61241.0,61240.0,0.001636]
[1728009529918,0.102818,61241.0,61240.0,0.001636]
[1728009530362,0.106818,61241.0,61240.0,0.001636]
[1728009530744,0.099818,61241.0,61240.0,0.001636]
[1728009530937,0.103818,61241.0,61240.0,0.001636]
[1728009531590,0.101818,61241.0,61240.0,0.001636]
[1728009531856,0.105818,61241.0,61240.0,0.001636]
[1728009532116,0.103818,61241.0,61240.0,0.001636]
[1728009532353,0.105818,61241.0,61240.0,0.001636]
[1728009532781,0.29471034,61241.0,61240.0,0.001636]
[1728009533714,0.29071034,61241.0,61240.0,0.001636]
[1728009533947,0.267107,61241.0,61240.0,0.001636]
[1728009534373,0.269107,61241.0,61240.0,0.001636]
[1728009537267,0.29471049,61241.0,61240.0,0.001636]
[1728009538522,0.29271049,61241.0,61240.0,0.001636]
[1728009539258,0.28871049,61241.0,61240.0,0.001636]
[1728009539455,0.29171049,61241.0,61240.0,0.001636]
[1728009539897,0.28871049,61241.0,61240.0,0.001636]
[1728009540065,0.28971049,61241.0,61240.0,0.001636]
[1728009540391,0.28971049,61241.0,61240.0,0.002636]
[1728009541774,0.264107,61241.0,61240.0,0.002636]
[1728009542583,0.100818,61241.0,61240.0,0.002636]
[1728009542815,0.264107,61241.0,61240.0,0.002636]
[1728009543054,0.001818,61241.0,61240.0,0.002636]
[1728009543286,0.001818,61241.0,61240.0,0.165927]
[1728009544966,0.001818,61241.0,61240.0,0.002636]
[1728009545199,0.02742063,61241.0,61240.0,0.002636]
[1728009546143,0.001818,61241.0,61240.0,0.002636]
[1728009549550,0.02742073,61241.0,61240.0,0.002636]
[1728009550522,0.001818,61241.0,61240.0,0.002636]
[1728009556921,0.02742102,61241.0,61240.0,0.002636]
[1728009558046,0.02742102,61241.0,61240.0,0.165927]
[1728009558269,0.02742102,61241.0,61240.0,0.002636]
[1728009562520,0.001818,61241.0,61240.0,0.002636]
[1728009565790,0.02742119,61241.0,61240.0,0.002636]
[1728009566952,0.001818,61241.0,61240.0,0.002636]
[1728009567423,0.165107,61241.0,61240.0,0.002636]
[1728009570247,0.19071047,61241.0,61240.0,0.002636]
[1728009570940,0.02742147,61241.0,61240.0,0.002636]
[1728009571181,0.165107,61241.0,61240.0,0.002636]
[1728009571899,0.001818,61241.0,61240.0,0.002636]
[1728009572359,0.165107,61241.0,61240.0,0.002636]
[1728009574562,0.19071032,61241.0,61240.0,0.002636]
[1728009575516,0.165107,61241.0,61240.0,0.002636]
[1728009578592,0.1907103,61241.0,61240.0,0.002636]
[1728009579725,0.165107,61241.0,61240.0,0.002636]
[1728009580193,0.001818,61241.0,61240.0,0.002636]
[1728009580419,0.165107,61241.0,61240.0,0.002636]
[1728009580692,0.001818,61241.0,61240.0,0.002636]
[1728009581663,0.001818,61241.0,61240.0,0.165927]
[1728009582164,0.001818,61241.0,61240.0,0.188927]
[1728009582402,0.001818,61241.0,61240.0,0.49189127]
[1728009582629,0.001818,61241.0,61240.0,0.38325661]
[1728009583377,0.000818,61241.0,61240.0,0.38225661]
[1728009583599,0.001818,61241.0,61240.0,0.38225661]
[1728009583824,0.001818,61241.0,61240.0,0.38825661]
[1728009584266,0.001818,61241.0,61240.0,0.38225661]
[1728009584511,0.000818,61241.0,61240.0,0.50481009]
[1728009584750,0.001818,61241.0,61240.0,0.51881009]
[1728009584971,0.002818,61241.0,61240.0,0.53081009]
[1728009585438,0.002818,61241.0,61240.0,0.51348048]
[1728009585913,0.002818,61241.0,61240.0,0.5307858]
[1728009586145,0.002818,61241.0,61240.0,0.40823232]
[1728009586376,0.002818,61241.0,61240.0,0.53072779]
[1728009587116,0.002818,61241.0,61240.0,0.7939145]
[1728009588506,0.002818,61241.0,61240.0,0.65411371]
[1728009589481,0.002818,61241.0,61240.0,0.67137969]
[1728009590232,0.001818,61241.0,61240.0,0.66137969]
[1728009590474,0.002818,61241.0,61240.0,0.82640903]
[1728009590700,0.002818,61241.0,61240.0,0.69642665]
[1728009590987,0.001818,61241.0,61240.0,0.68342665]
[1728009591215,0.000818,61244.0,61243.0,0.005]
[1728009591447,0.000818,61244.0,61243.0,0.69446271]
[1728009591725,0.000818,61244.0,61243.0,0.90992411]
[1728009591957,0.000818,61244.0,61243.0,0.69319808]
[1728009592476,0.001638,61253.0,61252.0,0.49567443]
[1728009592709,0.001638,61253.0,61252.0,0.77554604]
[1728009593405,0.001638,61253.0,61252.0,0.75826114]
[1728009594346,0.002638,61253.0,61252.0,0.77126114]
[1728009594576,0.002638,61253.0,61252.0,0.78526114]
[1728009595519,0.002638,61253.0,61252.0,0.90736319]
[1728009596491,0.002638,61253.0,61252.0,0.78526114]
[1728009596715,0.001638,61253.0,61252.0,0.77226114]
[1728009596948,0.001638,61253.0,61252.0,0.77126114]
[1728009597171,0.001638,61253.0,61252.0,0.78526114]
[1728009597400,0.001638,61253.0,61252.0,0.88282004]
[1728009597622,0.001638,61253.0,61252.0,0.88699028]
[1728009597842,0.001638,61253.0,61252.0,0.78943138]
[1728009598067,0.001638,61253.0,61252.0,0.8869896]
[1728009598298,0.001638,61253.0,61252.0,0.78743138]
[1728009598534,0.001638,61253.0,61252.0,0.68803138]
[1728009601369,0.001638,61253.0,61252.0,0.61053138]
[1728009602978,0.001638,61253.0,61252.0,0.61253138]
[1728009603429,0.001638,61253.0,61252.0,0.61053138]
[1728009607194,0.001638,61253.0,61252.0,0.61253138]
[1728009607649,0.001638,61253.0,61252.0,0.61053138]
[1728009611645,0.001638,61253.0,61252.0,0.313259]
[1728009611875,0.001638,61253.0,61252.0,0.190259]
[1728009612113,0.001638,61253.0,61252.0,0.027]
[1728009612348,0.181838,61253.0,61252.0,0.027]
[1728009612583,0.30675343,61253.0,61252.0,0.014]
[1728009613039,0.30675343,61253.0,61252.0,0.163259]
[1728009613267,0.181838,61253.0,61252.0,0.163259]
[1728009614215,0.181838,61253.0,61252.0,0.43094124]
[1728009614457,0.001638,61253.0,61252.0,0.31117443]
[1728009614690,0.001638,61253.0,61252.0,0.3144391]
[1728009614691,0.003638,61253.0,61252.0,0.3144391]
[1728009614918,0.003638,61253.0,61252.0,0.57936114]
[1728009615164,0.001638,61253.0,61252.0,0.58136114]
[1728009615431,0.001638,61253.0,61252.0,0.59854375]
[1728009615663,0.001638,61253.0,61252.0,0.66173235]
[1728009615892,0.001638,61253.0,61252.0,0.45544571]
[1728009616117,0.001638,61253.0,61252.0,0.47774516]
[1728009616353,0.001638,61253.0,61252.0,0.46057585]
[1728009616606,0.001638,61253.0,61252.0,0.48874856]
[1728009617079,0.001638,61253.0,61252.0,0.49774856]
[1728009617323,0.001638,61253.0,61252.0,0.49574856]
[1728009618727,0.001638,61253.0,61252.0,0.47444571]
[1728009618975,0.001638,61253.0,61252.0,0.32343171]
[1728009619249,0.001638,61253.0,61252.0,0.183259]
[1728009620593,0.001638,61253.0,61252.0,0.206259]
[1728009624338,0.001638,61253.0,61252.0,0.183259]
[1728009624571,0.096838,61253.0,61252.0,0.183259]
[1728009625699,0.096838,61253.0,61252.0,0.172259]
[1728009626144,0.096838,61253.0,61252.0,0.178259]
[1728009626574,0.096838,61253.0,61252.0,0.169259]
[1728009626805,0.096838,61253.0,61252.0,0.174259]
[1728009627269,0.096838,61253.0,61252.0,0.192259]
[1728009627509,0.001638,61253.0,61252.0,0.192259]
[1728009627740,0.001638,61253.0,61252.0,0.196259]
[1728009628236,0.001638,61253.0,61252.0,0.192259]
[1728009628469,0.001638,61253.0,61252.0,0.186259]
[1728009628706,0.001638,61253.0,61252.0,0.19752386]
[1728009628942,0.001638,61253.0,61252.0,0.29252386]
[1728009629200,0.001638,61253.0,61252.0,0.34506589]
[1728009629449,0.001638,61253.0,61252.0,0.36946934]
[1728009629678,0.001638,61253.0,61252.0,0.30641696]
[1728009629911,0.001638,61253.0,61252.0,0.31241696]
[1728009630141,0.001638,61253.0,61252.0,0.30968158]
[1728009630378,0.001638,61253.0,61252.0,0.30641696]
[1728009630632,0.001638,61253.0,61252.0,0.30668156]
[1728009630846,0.001638,61253.0,61252.0,0.31168156]
[1728009631065,0.001638,61253.0,61252.0,0.38502624]
[1728009631289,0.001638,61253.0,61252.0,0.30341696]
[1728009631518,0.001638,61253.0,61252.0,0.48786824]
[1728009631760,0.001638,61253.0,61252.0,0.48460367]
[1728009632020,0.001638,61253.0,61252.0,0.48873887]
[1728009632260,0.001638,61253.0,61252.0,0.46660367]
[1728009632483,0.001638,61253.0,61252.0,0.48260367]
[1728009632697,0.001638,61253.0,61252.0,0.47360367]
[1728009633138,0.001638,61253.0,61252.0,0.48360367]
[1728009633360,0.001638,61253.0,61252.0,0.57142314]
[1728009633577,0.001638,61253.0,61252.0,0.56442314]
[1728009634021,0.001638,61253.0,61252.0,0.57242314]
[1728009634472,0.001638,61253.0,61252.0,0.56442314]
[1728009634689,0.001638,61253.0,61252.0,0.58642314]
[1728009634902,0.001638,61253.0,61252.0,0.57442314]
[1728009635117,0.001638,61253.0,61252.0,0.58642314]
[1728009635334,0.001638,61253.0,61252.0,0.57642314]
[1728009635554,0.001638,61253.0,61252.0,0.58642314]
[1728009635992,0.001638,61253.0,61252.0,0.57442314]
[1728009636207,0.001638,61253.0,61252.0,0.58642314]
[1728009636868,0.001638,61253.0,61252.0,0.47860367]
[1728009637135,0.001638,61253.0,61252.0,0.47660367]
[1728009637354,0.001638,61253.0,61252.0,0.57447343]
[1728009637811,0.001638,61253.0,61252.0,0.47660367]
[1728009638257,0.001638,61253.0,61252.0,0.48860367]
[1728009638506,0.001638,61253.0,61252.0,0.47660367]
[1728009638760,0.001638,61253.0,61252.0,0.45944571]
[1728009639016,0.001638,61253.0,61252.0,0.47656072]
[1728009639212,0.001638,61253.0,61252.0,0.58643235]
[1728009639711,0.001638,61253.0,61252.0,0.61083506]
[1728009639928,0.001638,61253.0,61252.0,0.48856072]
[1728009641327,0.001638,61253.0,61252.0,0.61083506]
[1728009641818,0.001638,61253.0,61252.0,0.58883506]
[1728009642069,0.001638,61253.0,61252.0,0.60283506]
[1728009642303,0.001638,61253.0,61252.0,0.60291179]
[1728009642999,0.001638,61253.0,61252.0,0.61491179]
[1728009643454,0.001638,61253.0,61252.0,0.60291179]
[1728009643938,0.001638,61253.0,61252.0,0.61491179]
[1728009644445,0.001638,61253.0,61252.0,0.58891179]
[1728009644703,0.001638,61253.0,61252.0,0.60091179]
[1728009644952,0.001638,61253.0,61252.0,0.61491179]
[1728009645869,0.001638,61253.0,61252.0,0.59779678]
[1728009646095,0.001638,61253.0,61252.0,0.61491886]
[1728009647207,0.001638,61253.0,61252.0,0.49256779]
[1728009647473,0.001638,61253.0,61252.0,0.61495235]
[1728009648379,0.001638,61253.0,61252.0,0.59783027]
[1728009648620,0.001638,61253.0,61252.0,0.61495683]
[1728009650081,0.001638,61253.0,61252.0,0.49257227]
[1728009651228,0.001638,61253.0,61252.0,0.61496572]
[1728009651695,0.001638,61253.0,61252.0,0.6149682]
[1728009652194,0.001638,61253.0,61252.0,0.61496811]
[1728009652698,0.001638,61253.0,61252.0,0.49257337]
[1728009652920,0.001638,61253.0,61252.0,0.6149692]
[1728009653389,0.001638,61253.0,61252.0,0.49257337]
[1728009653631,0.001638,61253.0,61252.0,0.61497154]
[1728009654337,0.001638,61253.0,61252.0,0.49257337]
[1728009654557,0.001638,61253.0,61252.0,0.32938666]
[1728009655064,0.001638,61253.0,61252.0,0.4517876]
[1728009655319,0.001638,61253.0,61252.0,0.312259]
[1728009655560,0.001638,61253.0,61252.0,0.32938748]
[1728009658174,0.001638,61253.0,61252.0,0.43467266]
[1728009658401,0.001638,61253.0,61252.0,0.45182757]
[1728009659348,0.001638,61253.0,61252.0,0.32941391]
[1728009659818,0.001638,61253.0,61252.0,0.45419472]
[1728009660042,0.001638,61253.0,61252.0,0.4711145]
[1728009660571,0.178238,61253.0,61252.0,0.34633369]
[1728009661058,0.178238,61253.0,61252.0,0.34644075]
[1728009661293,0.178238,61253.0,61252.0,0.32952097]
[1728009661520,0.178238,61253.0,61252.0,0.45199563]
[1728009661967,0.101238,61253.0,61252.0,0.32952097]
[1728009662862,0.101238,61253.0,61252.0,0.45200012]
[1728009663324,0.101238,61253.0,61252.0,0.32952097]
[1728009663567,0.101238,61253.0,61252.0,0.312259]
[1728009663812,0.101238,61253.0,61252.0,0.32944601]
[1728009665507,0.101238,61253.0,61252.0,0.45193654]
[1728009666686,0.101238,61253.0,61252.0,0.32944601]
[1728009666919,0.101238,61253.0,61252.0,0.32940198]
[1728009668539,0.101238,61253.0,61252.0,0.45190413]
[1728009671099,0.101238,61253.0,61252.0,0.32940198]
[1728009673099,0.001638,61253.0,61252.0,0.32940198]
[1728009673196,0.001638,61253.0,61252.0,0.312259]
[1728009673421,0.001638,61253.0,61252.0,0.47637103]
[1728009673643,0.001638,61253.0,61252.0,0.312259]
[1728009673885,0.001638,61253.0,61252.0,0.32940746]
[1728009674408,0.001638,61253.0,61252.0,0.47637096]
[1728009675087,0.001638,61253.0,61252.0,0.47656057]
[1728009676076,0.094038,61253.0,61252.0,0.22940746]
[1728009676323,0.094038,61253.0,61252.0,0.212259]
[1728009676553,0.171238,61253.0,61252.0,0.31035652]
[1728009678229,0.094038,61253.0,61252.0,0.22929278]
[1728009678905,0.001638,61253.0,61252.0,0.22929278]
[1728009679649,0.001638,61253.0,61252.0,0.2295095]
[1728009682848,0.001638,61253.0,61252.0,0.22950437]
[1728009686402,0.001638,61253.0,61252.0,0.2464225]
[1728009691296,0.001638,61253.0,61252.0,0.22950437]
[1728009692232,0.001638,61253.0,61252.0,0.24640307]
[1728009692455,0.001638,61253.0,61252.0,0.212259]
[1728009692730,0.001638,61253.0,61252.0,0.24639062]
[1728009693692,0.001638,61253.0,61252.0,0.22949172]
[1728009693993,0.001638,61253.0,61252.0,0.24638394]
[1728009694233,0.001638,61253.0,61252.0,0.24638025]
[1728009695189,0.001638,61253.0,61252.0,0.43662798]
[1728009695655,0.001638,61253.0,61252.0,0.37122473]
[1728009698675,0.001638,61253.0,61252.0,0.22949172]
[1728009698901,0.001638,61253.0,61252.0,0.24646101]
[1728009699304,0.001638,61253.0,61252.0,0.22954753]
[1728009699503,0.001638,61253.0,61252.0,0.24651496]
[1728009699872,0.001638,61253.0,61252.0,0.22954753]
[1728009702765,0.001638,61253.0,61252.0,0.22954859]
[1728009703013,0.001638,61253.0,61252.0,0.24652543]
[1728009703212,0.001638,61253.0,61252.0,0.22954859]
[1728009705262,0.001638,61253.0,61252.0,0.24655109]
[1728009706142,0.001638,61253.0,61252.0,0.2465694]
[1728009708556,0.099738,61253.0,61252.0,0.2235694]
[1728009708773,0.181338,61253.0,61252.0,0.26283898]
[1728009708980,0.181338,61253.0,61252.0,0.189259]
[1728009709743,0.20693219,61253.0,61252.0,0.177259]
[1728009710164,0.20693219,61253.0,61252.0,0.179259]
[1728009710372,0.20693219,61253.0,61252.0,0.165259]
[1728009710610,0.20693219,61253.0,61252.0,0.163259]
[1728009710807,0.20693219,61253.0,61252.0,0.168259]
[1728009711982,0.20693219,61253.0,61252.0,0.006]
[1728009712193,0.1779,61251.0,61245.0,0.37724295]
[1728009712402,0.1779,61251.0,61247.0,0.163272]
[1728009712403,0.163263,61251.0,61247.0,0.163272]
[1728009712608,0.1779,61249.0,61247.0,0.163272]
[1728009712811,0.1779,61248.0,61247.0,0.163272]
[1728009713455,0.1779,61250.0,61245.0,0.001636]
[1728009713656,0.1779,61251.0,61247.0,0.163271]
[1728009713873,0.1779,61251.0,61246.0,0.489823]
[1728009714084,0.1779,61251.0,61248.0,0.16327]
[1728009714293,0.1779,61251.0,61246.0,0.32655]
[1728009714496,0.1779,61249.0,61247.0,0.166272]
[1728009714726,0.1779,61250.0,61247.0,0.166272]
[1728009714935,0.1779,61251.0,61247.0,0.166272]
[1728009715078,0.12477727,61252.0,61247.0,0.003]
[1728009715494,0.1779,61250.0,61247.0,0.166273]
[1728009715726,0.163263,61251.0,61247.0,0.166273]
[1728009715940,0.1779,61250.0,61247.0,0.163273]
[1728009716382,0.28803727,61252.0,61247.0,0.163273]
[1728009716601,0.28803727,61252.0,61245.0,0.001636]
[1728009716602,0.28803727,61252.0,61248.0,0.16327]
[1728009716824,0.1779,61247.0,61246.0,0.163274]
[1728009718498,0.1779,61247.0,61245.0,0.001636]
[1728009718499,0.0816,61247.0,61245.0,0.164914]
[1728009718720,0.0963,61246.0,61245.0,0.164914]
[1728009720356,0.1779,61246.0,61245.0,0.169914]
[1728009720576,0.1779,61246.0,61245.0,0.175914]
[1728009721016,0.1779,61246.0,61245.0,0.169914]
[1728009721231,0.1779,61246.0,61245.0,0.176914]
[1728009721938,0.1779,61246.0,61245.0,0.169914]
[1728009722165,0.1779,61246.0,61245.0,0.176914]
[1728009722910,0.46595227,61246.0,61245.0,0.008636]
[1728009723166,0.46595227,61246.0,61245.0,0.013636]
[1728009723658,0.46595227,61246.0,61245.0,0.001636]
[1728009723894,0.344175,61246.0,61245.0,0.001636]
[1728009724136,0.343175,61246.0,61245.0,0.001636]
[1728009724349,0.343175,61246.0,61245.0,0.002636]
[1728009724566,0.343175,61246.0,61245.0,0.001636]
[1728009724765,0.347175,61246.0,61245.0,0.002636]
[1728009725025,0.349175,61246.0,61245.0,0.002636]
[1728009725281,0.347175,61246.0,61245.0,0.002636]
[1728009725500,0.1859,61246.0,61245.0,0.002636]
[1728009726024,0.02960028,61246.0,61245.0,0.164914]
[1728009726297,0.03360028,61246.0,61245.0,0.164914]
[1728009726759,0.02960028,61246.0,61245.0,0.164914]
[1728009726992,0.02660028,61246.0,61245.0,0.164914]
[1728009727214,0.001,61246.0,61245.0,0.164914]
[1728009727437,0.0939,61250.0,61249.0,0.163267]
[1728009728815,0.0939,61250.0,61249.0,0.166267]
[1728009729933,0.0939,61250.0,61249.0,0.164267]
[1728009730229,0.0939,61250.0,61249.0,0.166267]
[1728009730461,0.1729,61257.0,61252.0,0.163259]
[1728009732322,0.1729,61257.0,61252.0,0.40794124]
[1728009732549,0.1729,61257.0,61252.0,0.163259]
[1728009732821,0.003638,61253.0,61252.0,0.55571851]
[1728009733075,0.003638,61253.0,61252.0,0.41103627]
[1728009733309,0.001638,61253.0,61252.0,0.62311628]
[1728009733523,0.001638,61253.0,61252.0,0.57922298]
[1728009733744,0.001638,61253.0,61252.0,0.66994904]
[1728009733961,0.001638,61253.0,61252.0,0.64748637]
[1728009734208,0.001638,61253.0,61252.0,0.64548637]
[1728009734463,0.001638,61253.0,61252.0,0.3665406]
[1728009734694,0.001638,61253.0,61252.0,0.313259]
[1728009734953,0.001638,61253.0,61252.0,0.290259]
[1728009735193,0.001638,61253.0,61252.0,0.213259]
[1728009735855,0.001638,61253.0,61252.0,0.200259]
[1728009736082,0.001638,61253.0,61252.0,0.186259]
[1728009736294,0.001638,61253.0,61252.0,0.198259]
[1728009736511,0.001638,61253.0,61252.0,0.212259]
[1728009736731,0.001638,61253.0,61252.0,0.186259]
[1728009736947,0.001638,61253.0,61252.0,0.200259]
[1728009737176,0.001638,61253.0,61252.0,0.213259]
[1728009737396,0.001638,61253.0,61252.0,0.199259]
[1728009737613,0.001638,61253.0,61252.0,0.186259]
[1728009737814,0.001638,61253.0,61252.0,0.212259]
[1728009738362,0.001638,61253.0,61252.0,0.189259]
[1728009739465,0.095538,61253.0,61252.0,0.026]
[1728009739688,0.258795,61253.0,61252.0,0.019]
[1728009739912,0.258795,61253.0,61252.0,0.021]
[1728009740107,0.095538,61253.0,61252.0,0.002]
[1728009740379,0.095538,61253.0,61252.0,0.003]
[1728009740613,0.095538,61253.0,61246.0,0.24468224]
[1728009740835,0.095538,61253.0,61245.0,0.001636]
[1728009740836,0.163271,61248.0,61245.0,0.001636]
[1728009741052,0.19023406,61251.0,61246.0,0.24468224]
[1728009741053,0.163269,61249.0,61246.0,0.24468224]
[1728009741305,0.163269,61249.0,61245.0,0.001636]
[1728009741533,0.326523,61252.0,61245.0,0.001636]
[1728009741796,0.163264,61251.0,61246.0,0.163274]
[1728009742043,0.099538,61253.0,61249.0,0.163267]
[1728009743139,0.098538,61253.0,61252.0,0.082301]
[1728009743366,0.095538,61253.0,61252.0,0.082301]
[1728009744068,0.258795,61253.0,61252.0,0.082301]
[1728009744509,0.261795,61253.0,61252.0,0.082301]
[1728009744738,0.098538,61253.0,61252.0,0.082301]
[1728009745411,0.12413551,61253.0,61252.0,0.082301]
[1728009745649,0.12113551,61253.0,61252.0,0.082301]
[1728009745877,0.12513551,61253.0,61252.0,0.082301]
[1728009746360,0.095538,61253.0,61252.0,0.082301]
[1728009746595,0.095538,61253.0,61252.0,0.24556]
[1728009746817,0.098538,61253.0,61252.0,0.24556]
[1728009747061,0.101538,61253.0,61252.0,0.082301]
[1728009747283,0.098538,61253.0,61252.0,0.082301]
[1728009747713,0.095538,61253.0,61252.0,0.082301]
[1728009747898,0.097538,61253.0,61252.0,0.082301]
[1728009748127,0.095538,61253.0,61252.0,0.082301]
[1728009748316,0.098538,61253.0,61252.0,0.082301]
[1728009749352,0.261795,61253.0,61252.0,0.082301]
[1728009749581,0.36339228,61253.0,61252.0,0.082301]
[1728009749802,0.339795,61253.0,61252.0,0.082301]
[1728009750310,0.339795,61253.0,61252.0,0.084301]
[1728009750311,0.337795,61253.0,61252.0,0.084301]
[1728009750530,0.340795,61253.0,61252.0,0.084301]
[1728009750766,0.340795,61253.0,61252.0,0.082301]
[1728009750983,0.342795,61253.0,61252.0,0.082301]
[1728009751441,0.337795,61253.0,61252.0,0.082301]
[1728009751875,0.340795,61253.0,61252.0,0.082301]
[1728009752757,0.344795,61253.0,61252.0,0.083301]
[1728009752975,0.341795,61253.0,61252.0,0.083301]
[1728009753455,0.344795,61253.0,61252.0,0.084301]
[1728009753689,0.344795,61253.0,61252.0,0.083301]
[1728009753916,0.347795,61253.0,61252.0,0.083301]
[1728009755881,0.343795,61253.0,61252.0,0.082301]
[1728009756111,0.341795,61253.0,61252.0,0.083301]
[1728009756340,0.344795,61253.0,61252.0,0.083301]
[1728009756615,0.337795,61253.0,61252.0,0.082301]
[1728009756839,0.340795,61253.0,61252.0,0.082301]
[1728009757062,0.344795,61253.0,61252.0,0.083301]
[1728009757275,0.341795,61253.0,61252.0,0.083301]
[1728009757492,0.340795,61253.0,61252.0,0.082301]
[1728009757721,0.341795,61253.0,61252.0,0.083301]
[1728009759048,0.337795,61253.0,61252.0,0.082301]
[1728009759264,0.341795,61253.0,61252.0,0.083301]
[1728009759714,0.46568074,61253.0,61252.0,0.082301]
[1728009759941,0.46268074,61253.0,61252.0,0.082301]
[1728009760192,0.46268074,61253.0,61252.0,0.083301]
[1728009760193,0.46968074,61253.0,61252.0,0.083301]
[1728009760454,0.49527994,61253.0,61252.0,0.083301]
[1728009760689,0.49127994,61253.0,61252.0,0.082301]
[1728009760907,0.49827994,61253.0,61252.0,0.083301]
[1728009761562,0.47268074,61253.0,61252.0,0.083301]
[1728009761988,0.47268074,61253.0,61252.0,0.082301]
[1728009761989,0.46868074,61253.0,61252.0,0.082301]
[1728009762234,0.46268074,61253.0,61252.0,0.082301]
[1728009762449,0.46968074,61253.0,61252.0,0.083301]
[1728009762861,0.46568074,61253.0,61252.0,0.082301]
[1728009763083,0.47268074,61253.0,61252.0,0.083301]